[Event "FIDE Women World Blitz 2021"]
[Site "Warsaw"]
[Date "2021.12.30"]
[Round "10.23"]
[White "Mamedjarova, Turkan"]
[Black "Lach, Aleksandra"]
[Result "1/2-1/2"]
[ECO "A87"]
[WhiteElo "2264"]
[BlackElo "2204"]
[Annotator "NA"]
[PlyCount "156"]
[EventDate "2021.12.29"]
[EventType "swiss"]
[EventCountry "POL"]
[Tiebreak "Cut1 Buchholz"]
[SourceTitle "playchess.com"]
[Source "ChessBase"]
[SourceQuality "1"]
[TimeControl "180+2"]

1. d4 {[%emt 0:00:02]} f5 {[%emt 0:00:00]} 2. c4 {[%emt 0:00:03]} Nf6 {[%emt 0:
00:01]} 3. Nc3 {[%emt 0:00:02]} d6 {[%emt 0:00:01]} 4. g3 {[%emt 0:00:09]} g6 {
[%emt 0:00:01]} 5. Bg2 {[%emt 0:00:01]} Bg7 {[%emt 0:00:01]} 6. Nf3 {[%emt 0:
00:08]} O-O {[%emt 0:00:02]} 7. O-O {[%emt 0:00:01]} e6 {[%emt 0:00:01]} 8. Re1
{[%emt 0:00:18]} Ne4 {[%emt 0:00:01]} 9. Qc2 {[%emt 0:00:13]} Nxc3 {[%emt 0:00:
05]} 10. bxc3 {[%emt 0:00:04]} e5 {[%emt 0:00:09]} 11. dxe5 {[%emt 0:00:09]}
dxe5 {[%emt 0:00:01]} 12. Ba3 {[%emt 0:00:01]} Re8 {[%emt 0:00:08]} 13. Rad1 {
[%emt 0:00:03]} Qf6 {[%emt 0:00:03]} 14. Qa4 {[%emt 0:00:08]} Nc6 {[%emt 0:00:
18]} 15. Rb1 {[%emt 0:00:23]} Rd8 {[%emt 0:00:28]} 16. h4 {[%emt 0:00:10]} h6 {
[%emt 0:00:02]} 17. Red1 {[%emt 0:00:03]} Rxd1+ {[%emt 0:00:06]} 18. Rxd1 {
[%emt 0:00:11]} Be6 {[%emt 0:00:01]} 19. Qb5 {[%emt 0:00:05]} Rb8 {[%emt 0:00:
18]} 20. Bc5 {[%emt 0:00:08]} a6 {[%emt 0:00:06]} 21. Qa4 {[%emt 0:00:03]} Kh7
{[%emt 0:00:16]} 22. Rb1 {[%emt 0:00:06]} e4 {[%emt 0:00:24]} 23. Nd4 {[%emt 0:
00:03]} Ne5 {[%emt 0:00:02]} 24. Nxe6 {[%emt 0:00:16]} Qxe6 {[%emt 0:00:01]}
25. Bd4 {[%emt 0:00:02]} Qxc4 {[%emt 0:00:04]} 26. Qa3 {[%emt 0:00:07]} Qe6 {
[%emt 0:00:04]} 27. Qc5 {[%emt 0:00:06]} Nc6 {[%emt 0:00:09]} 28. Bxg7 Kxg7 {
[%emt 0:00:01]} 29. a4 {[%emt 0:00:12]} Qd6 {[%emt 0:00:05]} 30. Qc4 {[%emt 0:
00:03]} Ne5 {[%emt 0:00:04]} 31. Qa2 {[%emt 0:00:05]} b6 {[%emt 0:00:03]} 32.
Qc2 {[%emt 0:00:09]} Rd8 {[%emt 0:00:01]} 33. Qb3 {[%emt 0:00:05]} Qd5 {
[%emt 0:00:04]} 34. Qb4 {[%emt 0:00:02]} Qd6 {[%emt 0:00:05]} 35. Qb3 {[%emt 0:
00:02]} a5 {[%emt 0:00:01]} 36. Qb5 {[%emt 0:00:05]} Kf6 {[%emt 0:00:07]} 37.
Qb2 {[%emt 0:00:09]} Qd2 {[%emt 0:00:03]} 38. Qb5 {[%emt 0:00:05]} Qxc3 {
[%emt 0:00:10]} 39. Qa6 {[%emt 0:00:09]} Qc6 {[%emt 0:00:17]} 40. e3 {[%emt 0:
00:03]} Rd6 {[%emt 0:00:07]} 41. Qc8 {[%emt 0:00:01]} Qd7 {[%emt 0:00:05]} 42.
Qf8+ {[%emt 0:00:02]} Nf7 {[%emt 0:00:04]} 43. Qa8 {[%emt 0:00:02]} Qxa4 {
[%emt 0:00:03]} 44. h5 {[%emt 0:00:03]} gxh5 {[%emt 0:00:02]} 45. Kh2 {[%emt 0:
00:01]} Qc2 {[%emt 0:00:02]} 46. Rb5 {[%emt 0:00:04]} Qxf2 {[%emt 0:00:03]} 47.
Qc8 {[%emt 0:00:01]} Re6 {[%emt 0:00:05]} 48. Qxc7 {[%emt 0:00:02]} Kg6 {
[%emt 0:00:06]} 49. Rxb6 {[%emt 0:00:02]} Rxb6 {[%emt 0:00:02]} 50. Qxb6+ {
[%emt 0:00:01]} Kg5 {[%emt 0:00:02]} 51. Qe6 {[%emt 0:00:01]} Nh8 {[%emt 0:00:
04]} 52. Qg8+ {[%emt 0:00:02]} Ng6 {[%emt 0:00:01]} 53. Qd8+ {[%emt 0:00:00]}
Kg4 {[%emt 0:00:01]} 54. Qg8 {[%emt 0:00:04]} Qxg3+ {[%emt 0:00:01]} 55. Kg1 {
[%emt 0:00:01]} Qxe3+ {[%emt 0:00:01]} 56. Kh1 {[%emt 0:00:01]} Qe1+ {[%emt 0:
00:03]} 57. Kh2 {[%emt 0:00:00]} Qg3+ {[%emt 0:00:02]} 58. Kg1 {[%emt 0:00:02]}
Kf4 {[%emt 0:00:03]} 59. Qb8+ {[%emt 0:00:02]} Ne5 {[%emt 0:00:00]} 60. Kh1 {
[%emt 0:00:03]} h4 {[%emt 0:00:03]} 61. Qh8 {[%emt 0:00:03]} Qg5 {[%emt 0:00:
02]} 62. Qb8 {[%emt 0:00:03]} a4 {[%emt 0:00:03]} 63. Qb2 {[%emt 0:00:02]} Nd3
{[%emt 0:00:01]} 64. Qd2+ {[%emt 0:00:01]} e3 {[%emt 0:00:01]} 65. Qxd3 {
[%emt 0:00:01]} Qg3 {[%emt 0:00:04]} 66. Qd6+ {[%emt 0:00:02]} Kg5 {[%emt 0:00:
01]} 67. Qe7+ {[%emt 0:00:01]} Kf4 {[%emt 0:00:02]} 68. Qb4+ {[%emt 0:00:05]}
Kg5 {[%emt 0:00:00]} 69. Qe7+ {[%emt 0:00:04]} Kf4 {[%emt 0:00:01]} 70. Qd6+ {
[%emt 0:00:04]} Kg5 {[%emt 0:00:01]} 71. Qe7+ {[%emt 0:00:01]} Kf4 {[%emt 0:00:
03]} 72. Qd6+ {[%emt 0:00:01]} Kg5 {[%emt 0:00:00]} 73. Qe7+ {[%emt 0:00:01]}
Kf4 {[%emt 0:00:01]} 74. Qd6+ {[%emt 0:00:01]} Kg5 {[%emt 0:00:02]} 75. Qe7+ {
[%emt 0:00:05]} Kf4 {[%emt 0:00:01]} 76. Qd6+ {[%emt 0:00:01]} Kg5 {[%emt 0:00:
00]} 77. Qe7+ {[%emt 0:00:01]} Kf4 {[%emt 0:00:01]} 78. Qd6+ {[%emt 0:00:01]}
Kg5 {[%emt 0:00:01]} 1/2-1/2

[Event "FIDE Women World Blitz 2021"]
[Site "Warsaw"]
[Date "2021.12.30"]
[Round "10.24"]
[White "Atalik, Ekaterina"]
[Black "Berend, Elvira"]
[Result "1/2-1/2"]
[ECO "A49"]
[WhiteElo "2430"]
[BlackElo "2328"]
[Annotator "ChessBase"]
[PlyCount "155"]
[EventDate "2021.12.29"]
[EventType "swiss"]
[EventCountry "POL"]
[Tiebreak "Cut1 Buchholz"]
[SourceTitle "playchess.com"]
[Source "ChessBase"]
[SourceQuality "1"]
[TimeControl "180+2"]

1. Nf3 {[%emt 0:00:01]} Nf6 {[%emt 0:00:02]} 2. d4 {[%emt 0:00:01]} g6 {
[%emt 0:00:07]} 3. g3 {[%emt 0:00:02]} Bg7 {[%emt 0:00:01]} 4. Bg2 {[%emt 0:00:
01]} O-O {[%emt 0:00:02]} 5. O-O {[%emt 0:00:02]} d6 {[%emt 0:00:01]} 6. b3 {
[%emt 0:00:02]} c5 {[%emt 0:00:04]} 7. Bb2 {[%emt 0:00:04]} cxd4 {[%emt 0:00:
02]} 8. Nxd4 {[%emt 0:00:06]} d5 {[%emt 0:00:01]} 9. c4 {[%emt 0:00:13]} e5 {
[%emt 0:00:12]} 10. Nf3 {[%emt 0:00:08]} e4 {[%emt 0:00:01]} 11. Nd4 {[%emt 0:
00:02]} dxc4 {[%emt 0:00:03]} 12. bxc4 {[%emt 0:00:03]} Nc6 {[%emt 0:00:12]}
13. Nxc6 {[%emt 0:00:05]} bxc6 {[%emt 0:00:01]} 14. Nc3 {[%emt 0:00:06]} Qe7 {
[%emt 0:00:33]} 15. Qa4 {[%emt 0:00:11]} Qe6 {[%emt 0:00:18]} 16. Rfd1 {
[%emt 0:00:16]} Re8 {[%emt 0:00:14]} 17. Rab1 {[%emt 0:00:04]} Bd7 {[%emt 0:00:
05]} 18. Ba3 {[%emt 0:00:06]} c5 {[%emt 0:00:06]} 19. Qb3 {[%emt 0:00:14]} Rac8
{[%emt 0:00:08]} 20. Nd5 {[%emt 0:00:06]} Nxd5 {[%emt 0:00:10]} 21. cxd5 {
[%emt 0:00:02]} Qa6 {[%emt 0:00:09]} 22. Qb7 {[%emt 0:00:31]} Qxa3 {[%emt 0:00:
09]} 23. Qxd7 {[%emt 0:00:01]} c4 {[%emt 0:00:04]} 24. Bxe4 {[%emt 0:00:13]}
Rcd8 {[%emt 0:00:06]} 25. Qc7 {[%emt 0:00:19]} c3 {[%emt 0:00:03]} 26. Bd3 {
[%emt 0:00:19]} Rxd5 {[%emt 0:00:12]} 27. Bc4 {[%emt 0:00:06]} Rxd1+ {[%emt 0:
00:01]} 28. Rxd1 {[%emt 0:00:01]} Qe7 {[%emt 0:00:07]} 29. Qxe7 {[%emt 0:00:03]
} Rxe7 {[%emt 0:00:00]} 30. Rd8+ {[%emt 0:00:02]} Bf8 {[%emt 0:00:01]} 31. Bd3
{[%emt 0:00:01]} Rc7 {[%emt 0:00:03]} 32. Bc2 {[%emt 0:00:03]} Kg7 {[%emt 0:00:
00]} 33. Kf1 {[%emt 0:00:04]} Be7 {[%emt 0:00:02]} 34. Rd3 {[%emt 0:00:03]} Bf6
{[%emt 0:00:06]} 35. e3 {[%emt 0:00:02]} Rb7 {[%emt 0:00:01]} 36. Ke2 {[%emt 0:
00:19]} Rb2 {[%emt 0:00:01]} 37. Kd1 {[%emt 0:00:01]} Rxa2 {[%emt 0:00:01]} 38.
Rd7 {[%emt 0:00:01]} Ra1+ {[%emt 0:00:03]} 39. Ke2 {[%emt 0:00:02]} Ra2 {
[%emt 0:00:04]} 40. Kd3 {[%emt 0:00:01]} a5 {[%emt 0:00:11]} 41. Ra7 {[%emt 0:
00:01]} Ra3 {[%emt 0:00:05]} 42. f4 {[%emt 0:00:02]} Kf8 {[%emt 0:00:01]} 43.
e4 {[%emt 0:00:02]} Be7 {[%emt 0:00:01]} 44. e5 {[%emt 0:00:04]} Bb4 {[%emt 0:
00:02]} 45. g4 {[%emt 0:00:07]} Ra1 {[%emt 0:00:07]} 46. f5 {[%emt 0:00:00]}
gxf5 {[%emt 0:00:03]} 47. gxf5 {[%emt 0:00:01]} Re1 {[%emt 0:00:02]} 48. Bb3 {
[%emt 0:00:05]} Rxe5 {[%emt 0:00:06]} 49. Rxf7+ {[%emt 0:00:01]} Ke8 {[%emt 0:
00:00]} 50. Rxh7 {[%emt 0:00:02]} Rxf5 {[%emt 0:00:03]} 51. h4 {[%emt 0:00:03]}
Rf3+ {[%emt 0:00:02]} 52. Kc2 {[%emt 0:00:02]} Rf2+ {[%emt 0:00:01]} 53. Kd3 {
[%emt 0:00:01]} Rb2 {[%emt 0:00:03]} 54. Ba4+ {[%emt 0:00:01]} Kf8 {[%emt 0:00:
01]} 55. h5 {[%emt 0:00:02]} Rd2+ {[%emt 0:00:02]} 56. Ke4 {[%emt 0:00:01]} c2
{[%emt 0:00:02]} 57. Rc7 {[%emt 0:00:02]} Rh2 {[%emt 0:00:05]} 58. Rxc2 {
[%emt 0:00:02]} Rxh5 {[%emt 0:00:05]} 59. Rc8+ {[%emt 0:00:02]} Ke7 {[%emt 0:
00:01]} 60. Rc7+ {[%emt 0:00:02]} Kd8 {[%emt 0:00:04]} 61. Rf7 {[%emt 0:00:02]}
Rg5 {[%emt 0:00:05]} 62. Kd4 {[%emt 0:00:02]} Kc8 {[%emt 0:00:01]} 63. Kc4 {
[%emt 0:00:01]} Kb8 {[%emt 0:00:01]} 64. Kb3 {[%emt 0:00:02]} Rc5 {[%emt 0:00:
01]} 65. Rf3 {[%emt 0:00:02]} Kc7 {[%emt 0:00:01]} 66. Rf7+ {[%emt 0:00:02]}
Kd6 {[%emt 0:00:01]} 67. Rf6+ {[%emt 0:00:01]} Ke5 {[%emt 0:00:01]} 68. Rf3 {
[%emt 0:00:02]} Ke4 {[%emt 0:00:01]} 69. Rh3 {[%emt 0:00:03]} Kf4 {[%emt 0:00:
01]} 70. Rh4+ {[%emt 0:00:04]} Kg3 {[%emt 0:00:01]} 71. Rc4 {[%emt 0:00:01]}
Re5 {[%emt 0:00:02]} 72. Rc2 {[%emt 0:00:04]} Re3+ {[%emt 0:00:01]} 73. Kb2 {
[%emt 0:00:01]} Kf4 {[%emt 0:00:05]} 74. Bb3 {[%emt 0:00:01]} Ke5 {[%emt 0:00:
04]} 75. Bc4 {[%emt 0:00:04]} a4 {[%emt 0:00:02]} 76. Re2 {[%emt 0:00:01]} a3+
{[%emt 0:00:02]} 77. Ka2 {[%emt 0:00:01]} Rxe2+ {[%emt 0:00:02]} 78. Bxe2 {
[%emt 0:00:01]} 1/2-1/2

[Event "FIDE Women World Blitz 2021"]
[Site "Warsaw"]
[Date "2021.12.30"]
[Round "10.25"]
[White "Batsiashvili, Nino"]
[Black "Badelka, Olga"]
[Result "1-0"]
[ECO "A13"]
[WhiteElo "2491"]
[BlackElo "2188"]
[Annotator "ChessBase"]
[PlyCount "85"]
[EventDate "2021.12.29"]
[EventType "swiss"]
[EventCountry "POL"]
[Tiebreak "Cut1 Buchholz"]
[SourceTitle "playchess.com"]
[Source "ChessBase"]
[SourceQuality "1"]
[TimeControl "180+2"]

1. c4 {[%emt 0:00:01]} e6 {[%emt 0:00:01]} 2. Nf3 {[%emt 0:00:02]} d5 {[%emt 0:
00:01]} 3. g3 {[%emt 0:00:01]} Nf6 {[%emt 0:00:01]} 4. Bg2 {[%emt 0:00:00]} d4
{[%emt 0:00:02]} 5. d3 {[%emt 0:00:03]} c5 {[%emt 0:00:00]} 6. e4 {[%emt 0:00:
03]} Nc6 {[%emt 0:00:02]} 7. e5 {[%emt 0:00:01]} Nd7 {[%emt 0:00:02]} 8. Bf4 {
[%emt 0:00:05]} Be7 {[%emt 0:00:01]} 9. h4 {[%emt 0:00:02]} f6 {[%emt 0:00:14]}
10. exf6 {[%emt 0:00:03]} gxf6 {[%emt 0:00:01]} 11. Nxd4 {[%emt 0:00:14]} Nde5
{[%emt 0:00:37]} 12. Nxc6 {[%emt 0:00:24]} Nxc6 {[%emt 0:00:12]} 13. Qh5+ {
[%emt 0:00:10]} Kd7 {[%emt 0:00:01]} 14. O-O {[%emt 0:00:09]} Qb6 {[%emt 0:00:
07]} 15. Nc3 {[%emt 0:00:03]} Nd4 {[%emt 0:00:17]} 16. Nb5 {[%emt 0:00:30]}
Nxb5 {[%emt 0:00:10]} 17. cxb5 {[%emt 0:00:01]} e5 {[%emt 0:00:07]} 18. Bh6 {
[%emt 0:00:14]} Kd8 {[%emt 0:00:18]} 19. Qf7 {[%emt 0:00:21]} Be6 {[%emt 0:00:
07]} 20. Qh5 {[%emt 0:00:08]} Qxb5 {[%emt 0:00:07]} 21. b4 {[%emt 0:00:08]} Rc8
{[%emt 0:00:19]} 22. bxc5 {[%emt 0:00:02]} Rxc5 {[%emt 0:00:03]} 23. Rab1 {
[%emt 0:00:03]} Qa6 {[%emt 0:00:12]} 24. Rxb7 {[%emt 0:00:09]} Rc7 {[%emt 0:00:
05]} 25. Rb8+ {[%emt 0:00:10]} Rc8 {[%emt 0:00:01]} 26. Rxc8+ {[%emt 0:00:03]}
Qxc8 {[%emt 0:00:06]} 27. d4 {[%emt 0:00:03]} exd4 {[%emt 0:00:09]} 28. Rd1 {
[%emt 0:00:10]} Qc5 {[%emt 0:00:01]} 29. Qf3 {[%emt 0:00:04]} Ke8 {[%emt 0:00:
16]} 30. Qa8+ {[%emt 0:00:10]} Bd8 {[%emt 0:00:07]} 31. Bg7 {[%emt 0:00:02]}
Rg8 {[%emt 0:00:03]} 32. Bxf6 {[%emt 0:00:01]} Kf7 {[%emt 0:00:08]} 33. Bxd8 {
[%emt 0:00:02]} Qd6 {[%emt 0:00:06]} 34. Qf3+ {[%emt 0:00:02]} Ke8 {[%emt 0:00:
00]} 35. Bg5 {[%emt 0:00:02]} Kd7 {[%emt 0:00:03]} 36. Bf4 {[%emt 0:00:01]} Qb4
{[%emt 0:00:02]} 37. Qb7+ {[%emt 0:00:01]} Qxb7 {[%emt 0:00:01]} 38. Bxb7 {
[%emt 0:00:01]} Bxa2 {[%emt 0:00:05]} 39. Rxd4+ {[%emt 0:00:01]} Ke6 {[%emt 0:
00:01]} 40. Ra4 {[%emt 0:00:02]} Bb3 {[%emt 0:00:03]} 41. Rxa7 {[%emt 0:00:01]}
Rd8 {[%emt 0:00:00]} 42. Bf3 {[%emt 0:00:02]} Rd3 {[%emt 0:00:01]} 43. Kg2 {
[%emt 0:00:01]} 1-0

[Event "FIDE Women World Blitz 2021"]
[Site "Warsaw"]
[Date "2021.12.30"]
[Round "10.26"]
[White "Padmini, Rout"]
[Black "Kurmangaliyeva, Liya"]
[Result "0-1"]
[ECO "E05"]
[WhiteElo "2353"]
[BlackElo "2222"]
[Annotator "NA"]
[PlyCount "122"]
[EventDate "2021.12.29"]
[EventType "swiss"]
[EventCountry "POL"]
[Tiebreak "Cut1 Buchholz"]
[SourceTitle "playchess.com"]
[Source "ChessBase"]
[SourceQuality "1"]
[TimeControl "180+2"]

1. Nf3 {[%emt 0:00:02]} Nf6 {[%emt 0:00:01]} 2. g3 {[%emt 0:00:01]} d5 {
[%emt 0:00:02]} 3. Bg2 {[%emt 0:00:01]} e6 {[%emt 0:00:02]} 4. O-O {[%emt 0:00:
02]} Be7 {[%emt 0:00:01]} 5. d4 {[%emt 0:00:02]} O-O {[%emt 0:00:03]} 6. c4 {
[%emt 0:00:02]} dxc4 {[%emt 0:00:01]} 7. Qc2 {[%emt 0:00:01]} b5 {[%emt 0:00:
02]} 8. a4 {[%emt 0:00:03]} b4 {[%emt 0:00:02]} 9. Qxc4 {[%emt 0:00:38]} Ba6 {
[%emt 0:00:01]} 10. Qc2 {[%emt 0:00:01]} Nbd7 {[%emt 0:00:03]} 11. Ne5 {
[%emt 0:00:47]} Nxe5 {[%emt 0:00:02]} 12. dxe5 {[%emt 0:00:02]} Nd5 {[%emt 0:
00:01]} 13. Rd1 {[%emt 0:00:09]} Qc8 {[%emt 0:00:04]} 14. e4 {[%emt 0:00:09]}
Nb6 {[%emt 0:00:08]} 15. Nd2 {[%emt 0:00:03]} Rd8 {[%emt 0:00:26]} 16. Bf1 {
[%emt 0:00:01]} Bxf1 {[%emt 0:00:21]} 17. Rxf1 {[%emt 0:00:17]} a5 {[%emt 0:00:
21]} 18. Nb3 {[%emt 0:00:05]} c5 {[%emt 0:00:13]} 19. Be3 {[%emt 0:00:05]} Nd7
{[%emt 0:00:02]} 20. Rfc1 {[%emt 0:00:20]} Qb7 {[%emt 0:00:07]} 21. f4 {
[%emt 0:00:10]} Rdc8 {[%emt 0:00:02]} 22. Nd2 {[%emt 0:00:04]} Qa6 {[%emt 0:00:
58]} 23. Nc4 {[%emt 0:00:11]} Rab8 {[%emt 0:00:02]} 24. Rd1 {[%emt 0:00:05]} b3
{[%emt 0:00:09]} 25. Qc3 {[%emt 0:00:08]} Nb6 {[%emt 0:00:15]} 26. Nd6 {
[%emt 0:00:08]} Rc6 {[%emt 0:00:08]} 27. Qxb3 {[%emt 0:00:04]} h6 {[%emt 0:00:
08]} 28. Qb5 {[%emt 0:00:03]} Qa8 {[%emt 0:00:04]} 29. Qe2 {[%emt 0:00:07]}
Bxd6 {[%emt 0:00:05]} 30. exd6 {[%emt 0:00:02]} Rd8 {[%emt 0:00:01]} 31. e5 {
[%emt 0:00:01]} Nd5 {[%emt 0:00:01]} 32. Bf2 {[%emt 0:00:02]} Qb7 {[%emt 0:00:
02]} 33. Rac1 {[%emt 0:00:01]} Qb4 {[%emt 0:00:02]} 34. Rc4 {[%emt 0:00:03]}
Qb3 {[%emt 0:00:01]} 35. Rdc1 {[%emt 0:00:03]} Nb4 {[%emt 0:00:05]} 36. Rxc5 {
[%emt 0:00:02]} Rxc5 {[%emt 0:00:02]} 37. Rxc5 {[%emt 0:00:01]} Qxa4 {[%emt 0:
00:03]} 38. Rc7 {[%emt 0:00:03]} Nd5 {[%emt 0:00:01]} 39. Rb7 {[%emt 0:00:02]}
Qa1+ {[%emt 0:00:01]} 40. Kg2 {[%emt 0:00:02]} Qc1 {[%emt 0:00:02]} 41. Kh3 {
[%emt 0:00:03]} Qb1 {[%emt 0:00:02]} 42. Qh5 {[%emt 0:00:03]} g6 {[%emt 0:00:
04]} 43. Qe2 {[%emt 0:00:02]} Qf5+ {[%emt 0:00:01]} 44. Kg2 {[%emt 0:00:01]}
Qb1 {[%emt 0:00:03]} 45. Rb5 {[%emt 0:00:01]} Qc1 {[%emt 0:00:02]} 46. Rxa5 {
[%emt 0:00:02]} Qc6 {[%emt 0:00:02]} 47. Qf3 {[%emt 0:00:02]} Rb8 {[%emt 0:00:
01]} 48. Ra2 {[%emt 0:00:02]} Qd7 {[%emt 0:00:03]} 49. b3 {[%emt 0:00:02]} h5 {
[%emt 0:00:01]} 50. Rd2 {[%emt 0:00:01]} Qb5 {[%emt 0:00:01]} 51. Rd3 {[%emt 0:
00:02]} Qc6 {[%emt 0:00:01]} 52. h3 {[%emt 0:00:02]} Rb4 {[%emt 0:00:00]} 53.
Rd1 {[%emt 0:00:07]} h4 {[%emt 0:00:01]} 54. Rd4 {[%emt 0:00:02]} Rb5 {[%emt 0:
00:04]} 55. Rd3 {[%emt 0:00:02]} hxg3 {[%emt 0:00:01]} 56. Kxg3 {[%emt 0:00:01]
} Rb4 {[%emt 0:00:02]} 57. Be3 {[%emt 0:00:02]} Qc2 {[%emt 0:00:01]} 58. Bd2 {
[%emt 0:00:01]} Rb8 {[%emt 0:00:01]} 59. h4 {[%emt 0:00:03]} Qb1 {[%emt 0:00:
01]} 60. Kh2 {[%emt 0:00:03]} Ra8 {[%emt 0:00:03]} 61. h5 {[%emt 0:00:01]} Ra1
{[%emt 0:00:10]} 0-1

[Event "FIDE Women World Blitz 2021"]
[Site "Warsaw"]
[Date "2021.12.30"]
[Round "10.27"]
[White "Garifullina, Leya"]
[Black "Rakhmangulova, Anastasiya"]
[Result "1-0"]
[ECO "B01"]
[WhiteElo "2416"]
[BlackElo "2174"]
[Annotator "NA"]
[PlyCount "46"]
[EventDate "2021.12.29"]
[EventType "swiss"]
[EventCountry "POL"]
[Tiebreak "Cut1 Buchholz"]
[SourceTitle "playchess.com"]
[Source "ChessBase"]
[SourceQuality "1"]
[TimeControl "180+2"]

1. e4 {[%emt 0:00:02]} d5 {[%emt 0:00:04]} 2. exd5 {[%emt 0:00:02]} Qxd5 {
[%emt 0:00:01]} 3. Nc3 {[%emt 0:00:02]} Qd6 {[%emt 0:00:00]} 4. d4 {[%emt 0:00:
01]} Nf6 {[%emt 0:00:01]} 5. Nf3 {[%emt 0:00:01]} a6 {[%emt 0:00:00]} 6. g3 {
[%emt 0:00:01]} Bg4 {[%emt 0:00:01]} 7. h3 {[%emt 0:00:01]} Bh5 {[%emt 0:00:01]
} 8. Bg2 {[%emt 0:00:05]} Nc6 {[%emt 0:00:01]} 9. d5 {[%emt 0:00:10]} Ne5 {
[%emt 0:00:10]} 10. g4 {[%emt 0:00:02]} Nxf3+ {[%emt 0:00:59]} 11. Qxf3 {
[%emt 0:00:04]} Bg6 {[%emt 0:00:01]} 12. Bf4 {[%emt 0:00:20]} e5 {[%emt 0:00:
22]} 13. dxe6 {[%emt 0:00:16]} Qxe6+ {[%emt 0:00:02]} 14. Kf1 {[%emt 0:00:28]}
Be7 {[%emt 0:00:34]} 15. Re1 {[%emt 0:00:03]} Qc4+ {[%emt 0:00:03]} 16. Kg1 {
[%emt 0:00:02]} Rd8 {[%emt 0:00:31]} 17. Bg3 {[%emt 0:00:33]} Rd7 {[%emt 0:00:
10]} 18. Qxb7 {[%emt 0:00:16]} O-O {[%emt 0:00:03]} 19. Qc6 {[%emt 0:00:04]}
Qb4 {[%emt 0:00:21]} 20. g5 {[%emt 0:00:05]} Rfd8 {[%emt 0:00:13]} 21. gxf6 {
[%emt 0:00:03]} Bxf6 {[%emt 0:00:02]} 22. Kh2 {[%emt 0:00:10]} h5 {[%emt 0:00:
02]} 23. Nd5 {[%emt 0:00:06]} Qd6 {[%emt 0:00:05]} 1-0

[Event "FIDE Women World Blitz 2021"]
[Site "Warsaw"]
[Date "2021.12.30"]
[Round "10.28"]
[White "Efimenko, Maria"]
[Black "Serikbay, Assel"]
[Result "1-0"]
[ECO "B22"]
[WhiteElo "2207"]
[BlackElo "2237"]
[Annotator "NA"]
[PlyCount "97"]
[EventDate "2021.12.29"]
[EventType "swiss"]
[EventCountry "POL"]
[Tiebreak "Cut1 Buchholz"]
[SourceTitle "playchess.com"]
[Source "ChessBase"]
[SourceQuality "1"]
[TimeControl "180+2"]

1. e4 {[%emt 0:00:01]} c5 {[%emt 0:00:02]} 2. c3 {[%emt 0:00:01]} Nf6 {[%emt 0:
00:02]} 3. e5 {[%emt 0:00:00]} Nd5 {[%emt 0:00:01]} 4. d4 {[%emt 0:00:01]} cxd4
{[%emt 0:00:01]} 5. cxd4 {[%emt 0:00:03]} Nc6 {[%emt 0:00:01]} 6. Nf3 {[%emt 0:
00:03]} e6 {[%emt 0:00:01]} 7. Bc4 {[%emt 0:00:06]} d6 {[%emt 0:00:02]} 8. O-O
{[%emt 0:00:03]} Be7 {[%emt 0:00:05]} 9. Nbd2 {[%emt 0:00:09]} O-O {[%emt 0:00:
08]} 10. Re1 {[%emt 0:00:35]} dxe5 {[%emt 0:00:27]} 11. dxe5 {[%emt 0:00:03]}
Qc7 12. Qe2 {[%emt 0:00:21]} a6 {[%emt 0:00:22]} 13. Nb3 {[%emt 0:00:15]} Ndb4
{[%emt 0:00:52]} 14. a3 {[%emt 0:00:19]} b5 {[%emt 0:00:01]} 15. axb4 {[%emt 0:
00:01]} bxc4 {[%emt 0:00:01]} 16. Qxc4 {[%emt 0:00:02]} Bxb4 {[%emt 0:00:10]}
17. Re4 {[%emt 0:00:02]} Bb7 {[%emt 0:00:07]} 18. Rg4 {[%emt 0:00:31]} Rfc8 {
[%emt 0:00:26]} 19. Bh6 {[%emt 0:00:22]} g6 {[%emt 0:00:01]} 20. Rc1 {[%emt 0:
00:10]} Qe7 {[%emt 0:00:04]} 21. Qf4 {[%emt 0:00:06]} a5 {[%emt 0:00:22]} 22.
Bg5 {[%emt 0:00:02]} Qf8 {[%emt 0:00:04]} 23. Bf6 {[%emt 0:00:12]} Be7 {
[%emt 0:00:04]} 24. Ng5 {[%emt 0:00:09]} Nb4 {[%emt 0:00:09]} 25. Rd1 {[%emt 0:
00:04]} Nd5 {[%emt 0:00:02]} 26. Qd4 {[%emt 0:00:09]} a4 {[%emt 0:00:08]} 27.
Nd2 {[%emt 0:00:02]} Bc5 {[%emt 0:00:02]} 28. Qe4 {[%emt 0:00:02]} Nxf6 {
[%emt 0:00:02]} 29. Qxb7 Nxg4 {[%emt 0:00:01]} 30. Nde4 {[%emt 0:00:04]} Rab8 {
[%emt 0:00:02]} 31. Qa6 {[%emt 0:00:01]} h6 {[%emt 0:00:07]} 32. Nxe6 {[%emt 0:
00:01]} fxe6 33. Qxe6+ {[%emt 0:00:01]} Qf7 {[%emt 0:00:02]} 34. Qxg4 {[%emt 0:
00:01]} Be7 {[%emt 0:00:01]} 35. e6 {[%emt 0:00:02]} Qf5 {[%emt 0:00:02]} 36.
Qe2 {[%emt 0:00:01]} Rd8 {[%emt 0:00:05]} 37. Re1 {[%emt 0:00:01]} Qe5 {
[%emt 0:00:03]} 38. h3 {[%emt 0:00:02]} Rxb2 {[%emt 0:00:01]} 39. Qg4 {[%emt 0:
00:03]} Kh7 {[%emt 0:00:03]} 40. h4 {[%emt 0:00:01]} Qf5 {[%emt 0:00:01]} 41.
Qg3 {[%emt 0:00:02]} Rf8 {[%emt 0:00:03]} 42. Qc7 {[%emt 0:00:01]} Qxe6 {
[%emt 0:00:01]} 43. Ng5+ {[%emt 0:00:01]} hxg5 {[%emt 0:00:04]} 44. Rxe6 {
[%emt 0:00:00]} Rb1+ {[%emt 0:00:03]} 45. Kh2 {[%emt 0:00:00]} Rf7 {[%emt 0:00:
02]} 46. Rxe7 {[%emt 0:00:00]} Rxe7 47. Qxe7+ {[%emt 0:00:00]} Kg8 {[%emt 0:00:
03]} 48. Qe8+ {[%emt 0:00:00]} Kg7 {[%emt 0:00:01]} 49. Qxa4 {[%emt 0:00:00]}
1-0

[Event "FIDE Women World Blitz 2021"]
[Site "Warsaw"]
[Date "2021.12.30"]
[Round "10.29"]
[White "Garcia Martin, Marta"]
[Black "Wikar, Martyna"]
[Result "1-0"]
[ECO "B23"]
[WhiteElo "2194"]
[BlackElo "1899"]
[Annotator "NA"]
[PlyCount "53"]
[EventDate "2021.12.29"]
[EventType "swiss"]
[EventCountry "POL"]
[Tiebreak "Cut1 Buchholz"]
[SourceTitle "playchess.com"]
[Source "ChessBase"]
[SourceQuality "1"]
[TimeControl "180+2"]

1. e4 {[%emt 0:00:02]} c5 {[%emt 0:00:03]} 2. Nc3 {[%emt 0:00:04]} Nc6 {
[%emt 0:00:00]} 3. Bb5 {[%emt 0:00:01]} g6 {[%emt 0:00:03]} 4. Bxc6 {[%emt 0:
00:05]} dxc6 {[%emt 0:00:01]} 5. f4 {[%emt 0:00:08]} Bg7 {[%emt 0:00:13]} 6.
Nf3 {[%emt 0:00:01]} Bg4 {[%emt 0:00:06]} 7. O-O {[%emt 0:00:14]} Qd7 {[%emt 0:
00:06]} 8. h3 {[%emt 0:01:21]} Bxf3 {[%emt 0:00:15]} 9. Qxf3 {[%emt 0:00:01]}
Nf6 {[%emt 0:00:22]} 10. d3 {[%emt 0:00:10]} O-O {[%emt 0:00:04]} 11. Be3 {
[%emt 0:00:12]} b6 {[%emt 0:00:03]} 12. f5 {[%emt 0:00:12]} e5 {[%emt 0:00:41]}
13. g4 {[%emt 0:00:26]} Ne8 {[%emt 0:00:11]} 14. Kh2 {[%emt 0:00:08]} f6 {
[%emt 0:00:27]} 15. h4 {[%emt 0:00:02]} Nd6 {[%emt 0:00:09]} 16. b3 {[%emt 0:
00:05]} Kh8 {[%emt 0:00:04]} 17. Ne2 {[%emt 0:00:01]} a5 {[%emt 0:00:10]} 18.
a4 {[%emt 0:00:01]} Nf7 {[%emt 0:00:16]} 19. Rh1 {[%emt 0:00:06]} Rad8 {
[%emt 0:00:13]} 20. Ng3 {[%emt 0:00:02]} Kg8 {[%emt 0:00:04]} 21. Rag1 {
[%emt 0:00:02]} Qe7 {[%emt 0:00:02]} 22. Qf2 {[%emt 0:00:05]} Nd6 {[%emt 0:00:
05]} 23. Kg2 {[%emt 0:00:01]} Qd7 {[%emt 0:00:06]} 24. Kf1 {[%emt 0:00:02]} Qe7
{[%emt 0:00:02]} 25. Ke1 {[%emt 0:00:10]} Qf7 {[%emt 0:00:02]} 26. fxg6 {
[%emt 0:00:02]} hxg6 {[%emt 0:00:02]} 27. h5 {[%emt 0:00:00]} 1-0